fUST/lending_fUST_20241229
["ID","MTS","AMOUNT","RATE_DAILY","PERIOD"]
[347029026,1735475445204,-500.0,0.00010618,2]
[347029027,1735475445213,-16962.8,0.00010618,2]
[347029028,1735475445223,-500.0,0.00010618,2]
[347029029,1735475445233,-538.69,0.00010618,2]
[347029030,1735475445242,-500.0,0.00010618,2]
[347029031,1735475445251,-833.26,0.00010618,2]
[347029032,1735475445260,-596.20301541,0.00010618,2]
[347029033,1735475445270,-500.0,0.00010618,2]
[347029034,1735475445279,-756.81,0.00010618,2]
[347029035,1735475445288,-647.78,0.00010618,2]
[347029036,1735475445297,-157.26,0.00010618,2]
[347029037,1735475445307,-2185.31,0.00010618,2]
[347029038,1735475445316,-500.0,0.00010618,2]
[347029039,1735475445325,-500.0,0.00010618,2]
[347029040,1735475445335,-500.0,0.00010618,2]
[347029041,1735475445344,-500.0,0.00010618,2]
[347029042,1735475445353,-637.87,0.00010618,2]
[347029043,1735475445363,-500.0,0.00010618,2]
[347029044,1735475445372,-500.0,0.00010618,2]
[347029045,1735475445384,-500.0,0.00010618,2]
[347029046,1735475445393,-500.0,0.00010618,2]
[347029047,1735475445402,-500.0,0.00010618,2]
[347029048,1735475445411,-500.0,0.00010618,2]
[347029049,1735475445421,-500.0,0.00010618,2]
[347029050,1735475445431,-500.0,0.00010618,2]
[347029051,1735475445440,-500.0,0.00010618,2]
[347029052,1735475445450,-500.0,0.00010618,2]
[347029053,1735475445460,-500.0,0.00010618,2]
[347029054,1735475445469,-500.0,0.00010618,2]
[347029055,1735475445478,-213.62788786,0.00010618,2]
[347029056,1735475445487,-500.0,0.00010618,2]
[347029057,1735475445496,-500.0,0.00010618,2]
[347029058,1735475445505,-500.0,0.00010618,2]
[347029059,1735475445514,-604.83,0.00010618,2]
[347029060,1735475445523,-500.0,0.00010618,2]
[347029061,1735475445533,-500.0,0.00010618,2]
[347029062,1735475445542,-500.0,0.00010619,2]
[347029063,1735475445552,-500.0,0.00010619,2]
[347029064,1735475445561,-341.05226963,0.00010619,2]
[347029065,1735475445571,-500.0,0.00010619,2]
[347029066,1735475445580,-2369.5,0.00010619,2]
[347029067,1735475445589,-500.0,0.00010619,2]
[347029068,1735475445598,-2717.37,0.0001062,2]
[347029069,1735475445607,-561.7,0.0001062,2]
[347029070,1735475445617,-3610.0,0.00010622,2]
[347029071,1735475445626,-500.0,0.00010891,2]
[347029072,1735475445635,-500.0,0.00010891,2]
[347029073,1735475445645,-500.0,0.00010891,2]
[347029074,1735475445654,-1606.57,0.00010891,2]
[347029075,1735475445663,-905.89,0.00010891,2]
[347029076,1735475445672,-1389.5,0.00010891,2]
[347029078,1735475445681,-615.25,0.00010891,2]
[347029079,1735475445690,-604.68,0.00010891,2]
[347029081,1735475445699,-500.0,0.00010891,2]
[347029082,1735475445708,-500.0,0.00010891,2]
[347029083,1735475445718,-500.0,0.00010892,2]
[347029084,1735475445727,-500.0,0.00010892,2]
[347029086,1735475445737,-500.0,0.00010892,2]
[347029087,1735475445746,-505.58,0.00010892,2]
[347029089,1735475445756,-500.0,0.00010892,2]
[347029090,1735475445765,-500.0,0.00010892,2]
[347029092,1735475445774,-385.1882697,0.00010892,2]
[347029093,1735475445783,-500.0,0.00010892,2]
[347029094,1735475445793,-500.0,0.00010892,2]
[347029096,1735475445802,-500.0,0.00010892,2]
[347029097,1735475445811,-500.0,0.00010892,2]
[347029099,1735475445819,-500.0,0.00010892,2]
[347029100,1735475445828,-500.0,0.00010892,2]
[347029101,1735475445838,-500.0,0.00010892,2]
[347029102,1735475445847,-500.0,0.00010892,2]
[347029104,1735475445856,-500.0,0.00010892,2]
[347029105,1735475445866,-731.97,0.00010892,2]
[347029107,1735475445875,-500.0,0.00010892,2]
[347029109,1735475445884,-500.0,0.00010892,2]
[347029110,1735475445893,-500.0,0.00010892,2]
[347029112,1735475445903,-16962.8,0.00010892,2]
[347029114,1735475445913,-500.0,0.00010892,2]
[347029116,1735475445922,-538.69,0.00010892,2]
[347029117,1735475445932,-500.0,0.00010892,2]
[347029119,1735475445941,-833.26,0.00010892,2]
[347029121,1735475445950,-500.0,0.00010892,2]
[347029122,1735475445959,-756.81,0.00010892,2]
[347029124,1735475445968,-647.78,0.00010892,2]
[347029126,1735475445978,-2185.31,0.00010892,2]
[347029127,1735475445987,-526.46437524,0.00010892,2]
[347029129,1735475445997,-500.0,0.00010892,2]
[347029131,1735475446006,-500.0,0.00010892,2]
[347029132,1735475446015,-500.0,0.00010892,2]
[347029134,1735475446024,-637.87,0.00010892,2]
[347029136,1735475446033,-500.0,0.00010892,2]
[347029137,1735475446042,-500.0,0.00010892,2]
[347029139,1735475446051,-500.0,0.00010892,2]
[347029141,1735475446061,-500.0,0.00010892,2]
[347029142,1735475446070,-500.0,0.00010892,2]
[347029144,1735475446079,-500.0,0.00010892,2]
[347029146,1735475446088,-500.0,0.00010892,2]
[347029147,1735475446098,-500.0,0.00010892,2]
[347029149,1735475446107,-500.0,0.00010892,2]
[347029151,1735475446117,-500.0,0.00010892,2]
[347029152,1735475446126,-500.0,0.00010892,2]
[347029154,1735475446136,-500.0,0.00010892,2]
[347029156,1735475446145,-290.71,0.00010892,2]
[347029157,1735475446154,-500.0,0.00010892,2]
[347029159,1735475446163,-604.83,0.00010892,2]
[347029161,1735475446171,-500.0,0.00010892,2]
[347029162,1735475446181,-500.0,0.00010892,2]
[347029164,1735475446190,-500.0,0.00010893,2]
[347029166,1735475446199,-500.0,0.00010893,2]
[347029168,1735475446208,-500.0,0.00010893,2]
[347029169,1735475446220,-2369.5,0.00010893,2]
[347029171,1735475446231,-500.0,0.00010893,2]
[347029173,1735475446241,-2717.37,0.00010894,2]
[347029175,1735475446250,-561.7,0.00010894,2]
[347029176,1735475446259,-3610.0,0.00010896,2]
[347029178,1735475446269,-989.3287424,0.00011003,2]
[347029180,1735475446278,-500.0,0.00011165,2]
[347029181,1735475446287,-500.0,0.00011165,2]
[347029183,1735475446296,-500.0,0.00011165,2]
[347029185,1735475446305,-1606.57,0.00011165,2]
[347029186,1735475446315,-905.89,0.00011165,2]
[347029188,1735475446324,-1389.5,0.00011165,2]
[347029190,1735475446333,-615.25,0.00011165,2]
[347029191,1735475446343,-604.68,0.00011165,2]
[347029193,1735475446352,-500.0,0.00011165,2]
[347029195,1735475446361,-500.0,0.00011165,2]
[347029196,1735475446371,-500.0,0.00011166,2]
[347029198,1735475446383,-529.47822571,0.00011166,2]
[347029200,1735475446392,-500.0,0.00011166,2]
[347029202,1735475446402,-496.28634091,0.00011166,2]
[347029203,1735475446411,-500.0,0.00011166,2]
[347029205,1735475446420,-500.0,0.00011166,2]
[347029207,1735475446430,-500.0,0.00011166,2]
[347029208,1735475446439,-500.0,0.00011166,2]
[347029215,1735475446515,-500.0,0.00011166,2]
[347029217,1735475446524,-500.0,0.00011166,2]
[347029219,1735475446534,-500.0,0.00011166,2]
[347029221,1735475446543,-500.0,0.00011166,2]
[347029223,1735475446553,-500.0,0.00011166,2]
[347029225,1735475446563,-500.0,0.00011166,2]
[347029227,1735475446572,-731.97,0.00011166,2]
[347029229,1735475446583,-500.0,0.00011166,2]
[347029230,1735475446593,-500.0,0.00011166,2]
[347029231,1735475446603,-500.0,0.00011166,2]
[347029232,1735475446613,-16962.8,0.00011166,2]
[347029233,1735475446623,-500.0,0.00011166,2]
[347029234,1735475446633,-538.69,0.00011166,2]
[347029235,1735475446643,-500.0,0.00011166,2]
[347029236,1735475446653,-833.26,0.00011166,2]
[347029237,1735475446663,-500.0,0.00011166,2]
[347029238,1735475446674,-756.81,0.00011166,2]
[347029239,1735475446684,-647.78,0.00011166,2]
[347029240,1735475446695,-2185.31,0.00011166,2]
[347029241,1735475446706,-500.0,0.00011166,2]
[347029242,1735475446718,-500.0,0.00011166,2]
[347029243,1735475446729,-500.0,0.00011166,2]
[347029244,1735475446740,-637.87,0.00011166,2]
[347029245,1735475446754,-535.3919373,0.00011166,2]
[347029246,1735475446765,-500.0,0.00011166,2]
[347029247,1735475446777,-500.0,0.00011166,2]
[347029248,1735475446788,-500.0,0.00011166,2]
[347029249,1735475446799,-500.0,0.00011166,2]
[347029250,1735475446810,-500.0,0.00011166,2]
[347029251,1735475446821,-255.64,0.00011166,2]
[347029252,1735475446832,-500.0,0.00011166,2]
[347029253,1735475446842,-500.0,0.00011166,2]
[347029254,1735475446853,-500.0,0.00011166,2]
[347029255,1735475446863,-500.0,0.00011166,2]
[347029256,1735475446874,-500.0,0.00011166,2]
[347029257,1735475446884,-500.0,0.00011166,2]
[347029258,1735475446893,-604.83,0.00011166,2]
[347029260,1735475446903,-500.0,0.00011166,2]
[347029262,1735475446913,-500.0,0.00011166,2]
[347029264,1735475446923,-500.0,0.00011167,2]
[347029266,1735475446933,-500.0,0.00011167,2]
[347029268,1735475446943,-500.0,0.00011167,2]
[347029270,1735475446952,-2369.5,0.00011167,2]
[347029272,1735475446962,-500.0,0.00011167,2]
[347029274,1735475446971,-2717.37,0.00011168,2]
[347029276,1735475446981,-561.7,0.00011168,2]
[347029278,1735475446990,-3610.0,0.0001117,2]
[347029280,1735475447000,-587.0,0.00011188,2]
[347029282,1735475447009,-500.0,0.00011439,2]
[347029284,1735475447018,-500.0,0.00011439,2]
[347029286,1735475447027,-500.0,0.00011439,2]
[347029288,1735475447036,-1606.57,0.00011439,2]
[347029290,1735475447046,-905.89,0.00011439,2]
[347029292,1735475447055,-1389.5,0.00011439,2]
[347029294,1735475447064,-615.25,0.00011439,2]
[347029296,1735475447073,-604.68,0.00011439,2]
[347029298,1735475447082,-500.0,0.00011439,2]
[347029300,1735475447091,-500.0,0.00011439,2]
[347029302,1735475447100,-500.0,0.0001144,2]
[347029304,1735475447109,-500.0,0.0001144,2]
[347029306,1735475447119,-500.0,0.0001144,2]
[347029308,1735475447130,-348.88489242,0.0001144,2]
[347029310,1735475447139,-500.0,0.0001144,2]
[347029312,1735475447148,-331.94520881,0.0001144,2]
[347029314,1735475447157,-500.0,0.0001144,2]
[347029316,1735475447167,-500.0,0.0001144,2]
[347029318,1735475447176,-500.0,0.0001144,2]
[347029320,1735475447185,-500.0,0.0001144,2]
[347029322,1735475447195,-731.97,0.0001144,2]
[347029324,1735475447205,-500.0,0.0001144,2]
[347029326,1735475447215,-500.0,0.0001144,2]
[347029328,1735475447226,-500.0,0.0001144,2]
[347029330,1735475447234,-16962.8,0.0001144,2]
[347029332,1735475447244,-538.69,0.0001144,2]
[347029334,1735475447253,-500.0,0.0001144,2]
[347029336,1735475447262,-833.26,0.0001144,2]
[347029338,1735475447271,-500.0,0.0001144,2]
[347029340,1735475447280,-756.81,0.0001144,2]
[347029342,1735475447289,-647.78,0.0001144,2]
[347029344,1735475447299,-2185.31,0.0001144,2]
[347029346,1735475447308,-500.0,0.0001144,2]
[347029348,1735475447318,-500.0,0.0001144,2]
[347029350,1735475447327,-500.0,0.0001144,2]
[347029352,1735475447337,-637.87,0.0001144,2]
[347029354,1735475447347,-500.0,0.0001144,2]
[347029356,1735475447356,-500.0,0.0001144,2]
[347029358,1735475447365,-500.0,0.0001144,2]
[347029360,1735475447375,-500.0,0.0001144,2]
[347029362,1735475447386,-500.0,0.0001144,2]
[347029364,1735475447396,-392.34012609,0.0001144,2]
[347029366,1735475447406,-500.0,0.0001144,2]
[347029368,1735475447416,-401.32235031,0.0001144,2]
[347029370,1735475447425,-500.0,0.0001144,2]
[347029372,1735475447434,-500.0,0.0001144,2]
[347029374,1735475447444,-500.0,0.0001144,2]
[347029376,1735475447453,-604.83,0.0001144,2]
[347029378,1735475447464,-500.0,0.0001144,2]
[347029380,1735475447474,-500.0,0.0001144,2]
[347029382,1735475447483,-314.54213832,0.00011441,2]
[347029384,1735475447493,-500.0,0.00011441,2]
[347029386,1735475447502,-500.0,0.00011441,2]
[347029388,1735475447511,-2369.5,0.00011441,2]
[347029390,1735475447521,-500.0,0.00011441,2]
[347029392,1735475447530,-2717.37,0.00011442,2]
[347029394,1735475447539,-561.7,0.00011442,2]
[347029396,1735475447548,-3610.0,0.00011444,2]
[347029398,1735475447557,-391.659,0.00011457,2]
[347029400,1735475447566,-228.20931706,0.00011457,2]
[347029402,1735475447576,-151.0,0.000115,2]
[347029404,1735475447585,-9567.38101525,0.00011521,2]
[347029407,1735475447595,-151.0,0.000116,2]
[347029409,1735475447604,-989.3287424,0.0001162,2]
[347029411,1735475447615,-151.0,0.000117,2]
[347029413,1735475447624,-500.0,0.00011713,2]
[347029415,1735475447633,-500.0,0.00011713,2]
[347029416,1735475447642,-500.0,0.00011713,2]
[347029418,1735475447651,-1606.57,0.00011713,2]
[347029420,1735475447661,-905.89,0.00011713,2]
[347029423,1735475447670,-1389.5,0.00011713,2]
[347029425,1735475447679,-615.25,0.00011713,2]
[347029427,1735475447689,-604.68,0.00011713,2]
[347029429,1735475447699,-500.0,0.00011713,2]
[347029431,1735475447709,-247.08959609,0.00011713,2]
[347029433,1735475447718,-500.0,0.00011714,2]
[347029435,1735475447727,-500.0,0.00011714,2]
[347029437,1735475447737,-500.0,0.00011714,2]
[347029439,1735475447746,-500.0,0.00011714,2]
[347029441,1735475447755,-500.0,0.00011714,2]
[347029443,1735475447764,-500.0,0.00011714,2]
[347029445,1735475447774,-155.04,0.00011714,2]
[347029446,1735475447783,-500.0,0.00011714,2]
[347029448,1735475447792,-731.97,0.00011714,2]
[347029450,1735475447801,-500.0,0.00011714,2]
[347029452,1735475447811,-500.0,0.00011714,2]
[347029454,1735475447820,-16962.8,0.00011714,2]
[347029456,1735475447830,-538.69,0.00011714,2]
[347029458,1735475447839,-500.0,0.00011714,2]
[347029460,1735475447848,-833.26,0.00011714,2]
[347029462,1735475447858,-500.0,0.00011714,2]
[347029464,1735475447870,-756.81,0.00011714,2]
[347029466,1735475447879,-647.78,0.00011714,2]
[347029468,1735475447888,-2185.31,0.00011714,2]
[347029470,1735475447897,-500.0,0.00011714,2]
[347029472,1735475447906,-500.0,0.00011714,2]
[347029474,1735475447916,-500.0,0.00011714,2]
[347029476,1735475447925,-637.87,0.00011714,2]
[347029478,1735475447934,-500.0,0.00011714,2]
[347029480,1735475447944,-500.0,0.00011714,2]
[347029482,1735475447953,-500.0,0.00011714,2]
[347029484,1735475447962,-500.0,0.00011714,2]
[347029486,1735475447971,-500.0,0.00011714,2]
[347029488,1735475447980,-194.75060377,0.00011714,2]
[347029490,1735475447990,-500.0,0.00011714,2]
[347029492,1735475447999,-500.0,0.00011714,2]
[347029494,1735475448009,-604.83,0.00011714,2]
[347029496,1735475448018,-500.0,0.00011715,2]
[347029498,1735475448027,-500.0,0.00011715,2]
[347029508,1735475448104,-2369.5,0.00011715,2]
[347029510,1735475448115,-500.0,0.00011715,2]
[347029512,1735475448125,-2717.37,0.00011716,2]
[347029514,1735475448134,-561.7,0.00011716,2]
[347029516,1735475448144,-3610.0,0.00011718,2]
[347029518,1735475448153,-6101.96351348,0.000118,2]
[347029520,1735475448162,-151.0,0.000118,2]
[347029522,1735475448172,-349.4688288,0.0001188,2]
[347029524,1735475448182,-3000.0,0.000119,2]
[347029526,1735475448191,-151.0,0.000119,2]
[347029528,1735475448200,-250.69798575,0.000119,2]
[347029530,1735475448210,-500.0,0.00011973,2]
[347029532,1735475448219,-500.0,0.00011973,2]
[347029534,1735475448229,-500.0,0.00011973,2]
[347029536,1735475448238,-501.55569054,0.00011973,2]
[347029538,1735475448248,-377.26224012,0.00011973,2]
[347029540,1735475448257,-501.0635328,0.00011973,2]
[347029542,1735475448267,-500.0,0.00011987,2]
[347029544,1735475448276,-500.0,0.00011987,2]
[347029546,1735475448286,-500.0,0.00011987,2]
[347029548,1735475448296,-1606.57,0.00011987,2]
[347029550,1735475448306,-905.89,0.00011987,2]
[347029552,1735475448315,-1389.5,0.00011987,2]
[347029554,1735475448325,-615.25,0.00011987,2]
[347029556,1735475448334,-604.68,0.00011987,2]
[347029558,1735475448344,-500.0,0.00011987,2]
[347029560,1735475448353,-500.0,0.00011988,2]
[347029562,1735475448363,-500.0,0.00011988,2]
[347029564,1735475448373,-549.44673543,0.00011988,2]
[347029566,1735475448384,-500.0,0.00011988,2]
[347029568,1735475448396,-500.0,0.00011988,2]
[347029570,1735475448406,-500.0,0.00011988,2]
[347029572,1735475448416,-500.0,0.00011988,2]
[347029574,1735475448427,-731.97,0.00011988,2]
[347029576,1735475448437,-500.0,0.00011988,2]
[347029578,1735475448447,-500.0,0.00011988,2]
[347029580,1735475448457,-16962.8,0.00011988,2]
[347029582,1735475448470,-538.69,0.00011988,2]
[347029584,1735475448480,-500.0,0.00011988,2]
[347029586,1735475448489,-833.26,0.00011988,2]
[347029588,1735475448499,-500.0,0.00011988,2]
[347029590,1735475448508,-756.81,0.00011988,2]
[347029592,1735475448518,-647.78,0.00011988,2]
[347029594,1735475448528,-2185.31,0.00011988,2]
[347029596,1735475448537,-500.0,0.00011988,2]
[347029598,1735475448547,-500.0,0.00011988,2]
[347029600,1735475448557,-500.0,0.00011988,2]
[347029602,1735475448566,-637.87,0.00011988,2]
[347029604,1735475448577,-500.0,0.00011988,2]
[347029606,1735475448586,-500.0,0.00011988,2]
[347029608,1735475448596,-500.0,0.00011988,2]
[347029610,1735475448605,-500.0,0.00011988,2]
[347029612,1735475448616,-500.0,0.00011988,2]
[347029614,1735475448626,-500.0,0.00011988,2]
[347029616,1735475448636,-500.0,0.00011988,2]
[347029618,1735475448645,-500.0,0.00011989,2]
[347029620,1735475448654,-500.0,0.00011989,2]
[347029622,1735475448665,-2369.5,0.00011989,2]
[347029624,1735475448675,-500.0,0.00011989,2]
[347029626,1735475448685,-2717.37,0.0001199,2]
[347029628,1735475448696,-561.7,0.0001199,2]
[347029631,1735475448706,-3610.0,0.00011992,2]
[347029633,1735475448716,-151.0,0.00011999,2]
[347029635,1735475448726,-2369.5,0.00011999,2]
[347029637,1735475448737,-2369.5,0.00011999,2]
[347029639,1735475448747,-2369.5,0.00011999,2]
[347029641,1735475448757,-2369.5,0.00011999,2]
[347029642,1735475448767,-2369.5,0.00011999,2]
[347029644,1735475448777,-2369.5,0.00011999,2]
[347029646,1735475448786,-2369.5,0.00011999,2]
[347029648,1735475448796,-2369.5,0.00011999,2]
[347029650,1735475448806,-2369.5,0.00011999,2]
[347029652,1735475448816,-2369.60061393,0.00011999,2]
[347029654,1735475448826,-416.450852,0.00011999,2]
[347029657,1735475448836,-151.0,0.00011999,2]
[347029659,1735475448847,-416.450852,0.00011999,2]
[347029661,1735475448857,-151.0,0.00011999,2]
[347029663,1735475448867,-151.0,0.00011999,2]
[347029665,1735475448877,-151.0,0.00011999,2]
[347029667,1735475448887,-273.829073,0.00011999,2]
[347029669,1735475448897,-151.0,0.00011999,2]
[347029671,1735475448907,-151.0,0.00011999,2]
[347029673,1735475448917,-505.26349,0.00011999,2]
[347029675,1735475448928,-151.0,0.00011999,2]
[347029677,1735475448937,-505.26349,0.00011999,2]
[347029679,1735475448947,-5796.38975028,0.00012,2]
[347029681,1735475448957,-38584.38676166,0.00012,2]
[347029683,1735475448966,-278742.18605507,0.00012,2]
[347029701,1735475449137,-500.0,9.247e-05,2]
[347029703,1735475449149,-500.0,9.247e-05,2]
[347029705,1735475449159,-500.0,9.521e-05,2]
[347029707,1735475449169,-317.60313441,0.00011714,2]
[347029709,1735475449179,-604.83,0.00011988,2]
[347029711,1735475449190,-46044.07888556,0.00012,2]
[347030814,1735475564826,1248.0,0.00025903,120]
[347030815,1735475657669,500.0,0.00020942,120]
[347030819,1735476055883,1126.3299999,8.248e-05,2]
[347030820,1735476055919,10000.0,8.248e-05,2]
[347030821,1735476055953,10000.0,8.248e-05,2]
[347030822,1735476055986,3773.6700001,8.248e-05,2]
[347030823,1735476174802,300.0,8.971e-05,2]
[347030825,1735476345138,-300.0,9.039e-05,2]
[347030826,1735476345158,-315.6582514,9.13e-05,2]
[347030827,1735476345179,-88.85193238,9.223e-05,2]
[347030828,1735476349098,-411.14806762,9.223e-05,2]
[347030829,1735476349118,-537.14113991,9.223e-05,2]
[347030830,1735476349140,-377.26224012,9.223e-05,2]
[347030831,1735476349161,-500.0,9.223e-05,2]
[347030832,1735476349183,-500.0,9.223e-05,2]
[347030833,1735476349203,-500.1693966,9.223e-05,2]
[347030834,1735476349222,-75.18194688,9.223e-05,2]
[347030836,1735476442115,-277.99055866,9.039e-05,2]
[347030837,1735476444136,-501.97283891,9.039e-05,2]
[347030839,1735476535627,497.56065646,8.949e-05,2]
[347030840,1735476543923,497.56065646,8.949e-05,2]
[347030907,1735476632286,-300.0,9.13e-05,2]
[347030909,1735476632298,-611.14116973,9.223e-05,2]
[347030912,1735476632309,-500.0,9.223e-05,2]
[347030914,1735476632321,-117.44283631,9.223e-05,2]
[347030917,1735476632343,-382.55716369,9.223e-05,2]
[347030919,1735476632355,-179.26869675,9.223e-05,2]
[347030921,1735476632367,-300.0,9.244e-05,2]
[347030924,1735476632378,-318.97501124,9.245e-05,2]
[347030926,1735476632388,-225.0,9.245e-05,2]
[347030928,1735476632400,-173.21360223,9.245e-05,2]
[347030930,1735476632411,-500.0,9.245e-05,2]
[347030932,1735476632422,-204.99226421,9.245e-05,2]
[347030935,1735476632434,-500.0,9.246e-05,2]
[347030937,1735476632445,-500.0,9.246e-05,2]
[347030939,1735476632456,-500.0,9.246e-05,2]
[347030941,1735476632467,-500.0,9.246e-05,2]
[347030944,1735476632478,-500.0,9.246e-05,2]
[347030946,1735476632490,-503.41209099,9.246e-05,2]
[347030949,1735476632501,-500.0,9.246e-05,2]
[347030952,1735476632513,-500.0,9.246e-05,2]
[347030955,1735476632524,-500.0,9.246e-05,2]
[347030958,1735476632534,-500.0,9.246e-05,2]
[347030962,1735476632545,-500.0,9.246e-05,2]
[347030964,1735476632556,-500.0,9.246e-05,2]
[347030966,1735476632567,-500.0,9.246e-05,2]
[347030968,1735476632578,-500.0,9.246e-05,2]
[347030969,1735476632589,-500.0,9.246e-05,2]
[347030970,1735476632600,-500.0,9.246e-05,2]
[347030971,1735476632612,-500.0,9.246e-05,2]
[347030972,1735476632623,-500.0,9.246e-05,2]
[347030973,1735476632634,-500.0,9.246e-05,2]
[347030974,1735476632645,-500.0,9.246e-05,2]
[347030975,1735476632656,-500.0,9.246e-05,2]
[347030976,1735476632666,-178.8500237,9.246e-05,2]
[347030977,1735476632677,-500.0,9.246e-05,2]
[347030978,1735476632688,-595.5899089,9.246e-05,2]
[347030979,1735476632698,-500.0,9.246e-05,2]
[347030980,1735476632709,-500.0,9.246e-05,2]
[347030982,1735476632721,-500.0,9.246e-05,2]
[347030984,1735476632733,-500.0,9.246e-05,2]
[347030999,1735476632864,-500.0,9.246e-05,2]
[347031002,1735476632881,-314.96464863,9.246e-05,2]
[347031004,1735476632891,-500.0,9.246e-05,2]
[347031006,1735476632900,-500.0,9.246e-05,2]
[347031008,1735476632910,-500.0,9.246e-05,2]
[347031010,1735476632920,-500.0,9.246e-05,2]
[347031012,1735476632930,-500.0,9.246e-05,2]
[347031014,1735476632939,-500.0,9.246e-05,2]
[347031016,1735476632949,-500.0,9.246e-05,2]
[347031018,1735476632959,-283.16970756,9.246e-05,2]
[347031020,1735476632968,-500.0,9.246e-05,2]
[347031022,1735476632977,-500.0,9.246e-05,2]
[347031024,1735476632986,-500.0,9.246e-05,2]
[347031026,1735476632996,-500.0,9.246e-05,2]
[347031028,1735476633006,-712.64,9.246e-05,2]
[347031030,1735476633015,-500.0,9.246e-05,2]
[347031032,1735476633025,-500.0,9.246e-05,2]
[347031034,1735476633035,-503.07474765,9.246e-05,2]
[347031036,1735476633046,-500.0,9.246e-05,2]
[347031038,1735476633056,-500.0,9.246e-05,2]
[347031040,1735476633066,-500.0,9.246e-05,2]
[347031042,1735476633076,-500.0,9.246e-05,2]
[347031044,1735476633086,-500.0,9.246e-05,2]
[347031046,1735476633095,-500.0,9.246e-05,2]
[347031047,1735476633106,-500.0,9.246e-05,2]
[347031049,1735476633116,-500.0,9.246e-05,2]
[347031051,1735476633127,-500.0,9.246e-05,2]
[347031053,1735476633137,-500.0,9.246e-05,2]
[347031055,1735476633147,-500.0,9.246e-05,2]
[347031057,1735476633157,-500.0,9.246e-05,2]
[347031059,1735476633168,-500.0,9.246e-05,2]
[347031061,1735476633178,-500.0,9.246e-05,2]
[347031063,1735476633188,-500.0,9.246e-05,2]
[347031065,1735476633198,-500.0,9.246e-05,2]
[347031067,1735476633208,-500.0,9.246e-05,2]
[347031069,1735476633217,-500.0,9.246e-05,2]
[347031071,1735476633227,-16322.71,9.246e-05,2]
[347031073,1735476633237,-500.0,9.246e-05,2]
[347031075,1735476633246,-500.0,9.246e-05,2]
[347031077,1735476633256,-537.08,9.246e-05,2]
[347031079,1735476633266,-500.0,9.246e-05,2]
[347031081,1735476633275,-500.0,9.246e-05,2]
[347031083,1735476633285,-500.0,9.246e-05,2]
[347031085,1735476633295,-500.0,9.246e-05,2]
[347031087,1735476633305,-500.0,9.246e-05,2]
[347031089,1735476633314,-819.38,9.246e-05,2]
[347031091,1735476633323,-500.0,9.246e-05,2]
[347031093,1735476633333,-500.0,9.246e-05,2]
[347031095,1735476633342,-500.0,9.246e-05,2]
[347031097,1735476633351,-502.3,9.246e-05,2]
[347031098,1735476633361,-500.0,9.246e-05,2]
[347031099,1735476633371,-746.11,9.246e-05,2]
[347031101,1735476633381,-641.62,9.246e-05,2]
[347031103,1735476633391,-175.40938668,9.246e-05,2]
[347031105,1735476633400,-500.0,9.246e-05,2]